bitfinex/quotes_BTCUSD_20230118
["timestamp","ask_amount","ask_price","bid_price","bid_amount"]
[1674006549691,0.1009769,21215.0,21214.0,0.1116655]
[1674006551046,0.1005,21215.0,21214.0,0.1116655]
[1674006551835,1.30597897,21215.0,21214.0,0.0012655]
[1674006552072,1.75187628,21215.0,21214.0,0.0012655]
[1674006552328,1.86496949,21215.0,21214.0,0.0012655]
[1674006552624,1.86497689,21215.0,21214.0,0.0012655]
[1674006555434,2.29935326,21215.0,21214.0,0.0012655]
[1674006555772,1.97788826,21215.0,21214.0,0.0012655]
[1674006555952,2.29935326,21215.0,21214.0,0.0012655]
[1674006556209,1.97788826,21215.0,21214.0,0.0012655]
[1674006556460,1.80877339,21215.0,21214.0,0.0012655]
[1674006556710,2.13023839,21215.0,21214.0,0.0012655]
[1674006556957,2.77629246,21215.0,21214.0,0.0012655]
[1674006557221,2.815832,21215.0,21214.0,0.0012655]
[1674006557475,3.92369341,21215.0,21214.0,0.0012655]
[1674006557740,3.64942407,21215.0,21214.0,0.0012655]
[1674006559294,3.36749861,21215.0,21214.0,0.00063403]
[1674006560873,3.70566464,21215.0,21214.0,0.00063403]
[1674006561097,3.36749861,21215.0,21214.0,0.00063403]
[1674006562398,3.84160078,21215.0,21214.0,0.00063403]
[1674006562659,3.36749861,21215.0,21214.0,0.00063403]
[1674006565255,3.3492104,21215.0,21214.0,0.00063403]
[1674006565768,3.1992104,21215.0,21214.0,0.00063403]
[1674006566022,2.95823225,21215.0,21214.0,0.00063403]
[1674006566560,3.42352219,21215.0,21214.0,0.00063403]
[1674006567087,3.19814649,21215.0,21214.0,0.00063403]
[1674006567367,3.42357247,21215.0,21214.0,0.00063403]
[1674006567878,3.10210747,21215.0,21214.0,0.00063403]
[1674006568939,3.42357247,21215.0,21214.0,0.00063403]
[1674006569192,3.19814649,21215.0,21214.0,0.00063403]
[1674006569451,3.1021456,21215.0,21214.0,0.00063403]
[1674006569711,3.61391234,21215.0,21214.0,0.00063403]
[1674006570781,3.63220055,21215.0,21214.0,0.00063403]
[1674006571307,3.97036658,21215.0,21214.0,0.00063403]
[1674006572050,4.08126658,21215.0,21214.0,0.00063403]
[1674006573615,4.37118703,21215.0,21214.0,0.00063403]
[1674006573906,4.033021,21215.0,21214.0,0.00063403]
[1674006574149,4.08112393,21215.0,21214.0,0.00063403]
[1674006575700,4.08084023,21215.0,21214.0,0.00063403]
[1674006575994,3.66507438,21215.0,21214.0,0.00063403]
[1674006579211,3.66507438,21215.0,21213.0,0.00859094]
[1674006579212,0.15,21214.0,21213.0,0.00466715]
[1674006579473,2.19993869,21214.0,21213.0,0.00466715]
[1674006579730,2.88446839,21214.0,21213.0,0.00466715]
[1674006580267,2.94121085,21214.0,21213.0,0.00466715]
[1674006580808,3.03023212,21214.0,21213.0,0.00466715]
[1674006581062,2.80498369,21214.0,21213.0,0.00466715]
[1674006581323,3.0300339,21214.0,21213.0,0.00466715]
[1674006581583,3.03003952,21214.0,21213.0,0.00466715]
[1674006582089,2.80478412,21214.0,21213.0,0.00466715]
[1674006582880,3.10478412,21214.0,21213.0,0.00466715]
[1674006583177,2.80478412,21214.0,21213.0,0.00466715]
[1674006584121,1.911726,21214.0,21213.0,0.11576715]
[1674006585433,2.45205177,21214.0,21213.0,0.11576715]
[1674006585686,3.07352277,21214.0,21213.0,0.00466715]
[1674006585946,2.75205177,21214.0,21213.0,0.00466715]
[1674006586207,3.07368327,21214.0,21213.0,0.00466715]
[1674006586517,2.79200747,21214.0,21213.0,0.00466715]
[1674006587532,2.47053647,21214.0,21213.0,0.00466715]
[1674006588048,2.79200747,21214.0,21213.0,0.00466715]
[1674006588307,2.47053647,21214.0,21213.0,0.00466715]
[1674006588763,2.79200747,21214.0,21213.0,0.00466715]
[1674006589242,2.79169555,21214.0,21213.0,0.00466715]
[1674006589507,2.47022455,21214.0,21213.0,0.00466715]
[1674006589736,2.79169555,21214.0,21213.0,0.00466715]
[1674006589976,2.47022455,21214.0,21213.0,0.00466715]
[1674006590238,2.79169555,21214.0,21213.0,0.00466715]
[1674006590505,1.97520823,21214.0,21213.0,0.140079]
[1674006590762,2.20071323,21214.0,21213.0,0.00466715]
[1674006591851,0.49043736,21214.0,21213.0,0.22566715]
[1674006592160,0.49043736,21214.0,21213.0,0.27788215]
[1674006592439,0.26493411,21214.0,21213.0,0.27788215]
[1674006592694,0.49043736,21214.0,21213.0,0.27788215]
[1674006592973,0.27343411,21214.0,21213.0,0.27788215]
[1674006594377,2.67197185,21214.0,21213.0,0.00466715]
[1674006594650,2.8027169,21214.0,21213.0,0.00466715]
[1674006594956,3.28350137,21214.0,21213.0,0.00466715]
[1674006595215,3.09325232,21214.0,21213.0,0.00466715]
[1674006595469,3.56735449,21214.0,21213.0,0.00466715]
[1674006595723,4.03691285,21214.0,21213.0,0.00466715]
[1674006599192,4.03691285,21214.0,21211.0,0.00924567]
[1674006599193,0.15,21213.0,21211.0,0.00924567]
[1674006599439,3.61510659,21212.0,21211.0,0.00924567]
[1674006599711,4.09885239,21212.0,21211.0,0.00924567]
[1674006599966,3.76076889,21212.0,21211.0,0.00924567]
[1674006600471,3.64986889,21212.0,21211.0,0.00924567]
[1674006600972,3.98795239,21212.0,21211.0,0.00924567]
[1674006601576,4.10943564,21212.0,21211.0,0.00924567]
[1674006601774,4.44751914,21212.0,21211.0,0.00924567]
[1674006602027,3.73786889,21212.0,21211.0,0.00924567]
[1674006602304,3.64986889,21212.0,21211.0,0.00924567]
[1674006602530,3.73886889,21212.0,21211.0,0.00924567]
[1674006603293,4.07695239,21212.0,21211.0,0.00924567]
[1674006603568,3.73886889,21212.0,21211.0,0.00924567]
[1674006604892,4.21297106,21212.0,21211.0,0.00924567]
[1674006605164,4.95426458,21212.0,21211.0,0.00924567]
[1674006609115,4.72343969,21212.0,21211.0,0.00315514]
[1674006609423,5.1896893,21212.0,21211.0,0.00315514]
[1674006610995,4.4270185,21212.0,21211.0,0.00315514]
[1674006611251,4.46453319,21212.0,21211.0,0.00315514]
[1674006611508,4.1270185,21212.0,21211.0,0.00315514]
[1674006611775,4.46453319,21212.0,21211.0,0.00315514]
[1674006612057,4.24263319,21212.0,21211.0,0.00315514]
[1674006612318,4.71668705,21212.0,21211.0,0.00315514]
[1674006612573,5.01668705,21212.0,21211.0,0.00315514]
[1674006613387,4.54263319,21212.0,21211.0,0.00315514]
[1674006614202,4.0946185,21212.0,21211.0,0.00315514]
[1674006618687,4.07580933,21212.0,21211.0,0.00315514]
[1674006618914,4.30076925,21212.0,21211.0,0.00315514]
[1674006619176,3.97079825,21212.0,21211.0,0.00315514]
[1674006619439,2.26774833,21212.0,21211.0,0.00315514]
[1674006619707,2.08400253,21212.0,21211.0,0.00315514]
[1674006620515,2.25274185,21212.0,21211.0,0.00315514]
[1674006622411,1.55635093,21212.0,21211.0,0.00315514]
[1674006622951,1.66885226,21212.0,21211.0,0.00315514]
[1674006623484,1.78131085,21212.0,21211.0,0.00315514]
[1674006623750,1.55635093,21212.0,21211.0,0.00315514]
[1674006624311,1.78131085,21212.0,21211.0,0.00315514]
[1674006624834,1.55635093,21212.0,21211.0,0.05538014]
[1674006625089,1.6688637,21212.0,21211.0,0.05538014]
[1674006625662,1.1974327,21212.0,21211.0,0.05538014]
[1674006625925,1.1974327,21212.0,21211.0,0.00315514]
[1674006625926,1.02869338,21212.0,21211.0,0.00315514]
[1674006626512,0.089,21212.0,21211.0,0.40561014]
[1674006628071,0.11251277,21213.0,21211.0,0.40561014]
[1674006628332,0.076,21212.0,21211.0,0.00415514]
[1674006628594,1.26833733,21214.0,21211.0,0.27757914]
[1674006628595,0.7594511,21214.0,21211.0,0.27757914]
[1674006628875,0.076,21212.0,21211.0,0.00415514]
[1674006629165,0.7594511,21214.0,21211.0,0.27737814]
[1674006629396,0.076,21213.0,21212.0,0.1111]
[1674006629649,0.076,21213.0,21212.0,0.27442]
[1674006629650,0.65992177,21213.0,21212.0,0.27442]
[1674006629907,0.65992177,21213.0,21212.0,0.2222]
[1674006630197,0.65992177,21213.0,21212.0,0.27442]
[1674006630735,0.58392177,21213.0,21212.0,0.27442]
[1674006631518,0.58392177,21213.0,21212.0,0.27431536]
[1674006634609,0.75266109,21213.0,21212.0,0.27431536]
[1674006635125,0.75266109,21213.0,21212.0,0.22209536]
[1674006635387,0.75266109,21213.0,21212.0,0.27431536]
[1674006635643,0.75266109,21213.0,21212.0,0.22209536]
[1674006635940,0.90266109,21213.0,21212.0,0.27431536]
[1674006636210,0.58392177,21213.0,21212.0,0.27431536]
[1674006636736,0.471409,21213.0,21212.0,0.27431536]
[1674006639459,0.4718859,21213.0,21212.0,0.27431536]
[1674006640486,0.471409,21213.0,21212.0,0.27431536]
[1674006641495,0.59069878,21214.0,21212.0,0.27431536]
[1674006641753,1.06209778,21214.0,21213.0,0.1111]
[1674006642027,1.06257468,21214.0,21213.0,0.111]
[1674006642534,1.06209778,21214.0,21213.0,0.163215]
[1674006642795,1.06209778,21214.0,21213.0,0.111]
[1674006643312,1.06209778,21214.0,21213.0,0.112]
[1674006643313,1.14309778,21214.0,21213.0,0.112]
[1674006643836,1.29357468,21214.0,21213.0,0.112]
[1674006644350,1.14357468,21214.0,21213.0,0.112]
[1674006644618,1.14309778,21214.0,21213.0,0.001]
[1674006644901,1.03106191,21214.0,21213.0,0.001]
[1674006645161,1.29357468,21214.0,21213.0,0.001]
[1674006645980,1.29319392,21214.0,21213.0,0.001]
[1674006646255,1.18020425,21214.0,21213.0,0.001]
[1674006647777,1.29271702,21214.0,21213.0,0.001]
[1674006648291,1.18020425,21214.0,21213.0,0.001]
[1674006649891,1.18068115,21214.0,21213.0,0.001]
[1674006650177,1.29319392,21214.0,21213.0,0.001]
[1674006650378,0.97917389,21214.0,21213.0,0.001]
[1674006650874,1.12965079,21214.0,21213.0,0.001]
[1674006651402,1.24216356,21214.0,21213.0,0.001]
[1674006651965,1.41090288,21214.0,21213.0,0.001]
[1674006653026,1.88810457,21214.0,21213.0,0.001]
[1674006653283,2.82467694,21214.0,21213.0,0.001]
[1674006653538,2.92118802,21214.0,21213.0,0.001]
[1674006653799,1.8319944,21214.0,21213.0,0.001]
[1674006654139,1.26061345,21214.0,21213.0,0.001]
[1674006654344,0.62035481,21214.0,21213.0,0.053215]
[1674006656746,0.78921445,21214.0,21213.0,0.053215]
[1674006658779,0.36243956,21214.0,21213.0,0.053215]
[1674006659043,0.36243956,21214.0,21213.0,0.163615]
[1674006659044,0.081,21214.0,21213.0,0.163615]
[1674006662370,0.081,21214.0,21213.0,1.84969353]
[1674006662682,0.081,21214.0,21213.0,1.71428168]
[1674006663208,0.081,21214.0,21213.0,1.328633]
[1674006664599,0.081,21214.0,21213.0,1.71428168]
[1674006664856,0.081,21214.0,21213.0,1.328633]
[1674006665414,0.081,21214.0,21213.0,1.71428168]
[1674006665976,0.081,21214.0,21213.0,1.328633]
[1674006667812,0.081,21214.0,21213.0,1.217533]
[1674006668073,0.081,21214.0,21213.0,1.20115301]
[1674006671931,0.081,21214.0,21213.0,1.58680169]
[1674006672458,0.081,21214.0,21213.0,2.12680169]
[1674006673232,0.081,21214.0,21213.0,1.82680169]
[1674006673736,0.081,21214.0,21213.0,1.44115301]
[1674006673740,0.081,21214.0,21213.0,1.82680169]
[1674006673995,0.081,21214.0,21213.0,1.44115301]
[1674006674217,0.081,21214.0,21213.0,1.82680169]
[1674006674476,0.081,21214.0,21213.0,1.33075301]
[1674006676782,0.0814769,21214.0,21213.0,0.85934401]
[1674006677327,0.081,21214.0,21213.0,0.85934401]
[1674006679654,0.081,21214.0,21213.0,0.82257495]
[1674006680032,0.081,21214.0,21213.0,0.822509]
[1674006680195,0.081,21214.0,21213.0,0.3511]
[1674006680988,0.081,21214.0,21213.0,0.1111]
[1674006681998,0.081,21214.0,21212.0,1.053831]
[1674006682542,0.081,21214.0,21213.0,0.036835]
[1674006682801,0.621347,21216.0,21213.0,0.036835]
[1674006682802,0.471347,21216.0,21213.0,6.508244]
[1674006683068,0.471347,21216.0,21213.0,6.471409]
[1674006683329,0.082,21214.0,21213.0,6.471409]
[1674006683586,0.082,21214.0,21213.0,6.508241]
[1674006684392,0.082,21214.0,21213.0,7.08985]
[1674006684660,0.8638329,21217.0,21213.0,7.08985]
[1674006684967,0.082,21214.0,21213.0,7.46487853]
[1674006685252,0.8638329,21217.0,21213.0,7.09141495]
[1674006685514,0.8638329,21217.0,21214.0,0.1109]
[1674006685748,0.9458329,21217.0,21215.0,0.036827]
[1674006686056,0.0004769,21216.0,21214.0,0.1109]
[1674006686335,0.0004769,21216.0,21215.0,0.036824]
[1674006686919,1.44773282,21217.0,21215.0,0.036824]
[1674006687169,1.44820972,21217.0,21214.0,0.1109]
[1674006687428,1.44820972,21217.0,21215.0,0.276824]
[1674006687699,0.97639582,21217.0,21216.0,0.036822]
[1674006688167,1.05839582,21217.0,21216.0,0.036822]
[1674006688473,0.9458159,21217.0,21216.0,0.036822]
[1674006688749,0.97639582,21217.0,21216.0,0.036822]
[1674006688989,1.05839582,21217.0,21216.0,0.036822]
[1674006689236,0.97639582,21217.0,21216.0,0.036822]
[1674006689484,1.05839582,21217.0,21216.0,0.037822]
[1674006693535,1.33981746,21217.0,21216.0,0.037822]
[1674006694310,1.75157685,21217.0,21216.0,0.037822]
[1674006694553,2.22171552,21217.0,21216.0,0.037822]
[1674006694837,2.69303552,21217.0,21216.0,0.037822]
[1674006695086,2.69303552,21217.0,21216.0,0.001]
[1674006695666,2.4678936,21217.0,21216.0,0.001]
[1674006697170,2.69334683,21217.0,21216.0,0.001]
[1674006697440,2.4678936,21217.0,21216.0,0.001]
[1674006697705,1.60195816,21217.0,21216.0,0.037821]
[1674006698231,2.07205769,21217.0,21216.0,0.037821]
[1674006698492,2.07205769,21217.0,21216.0,0.001]
[1674006698738,1.79086686,21217.0,21216.0,0.037821]
[1674006699240,2.07205769,21217.0,21216.0,0.03914]
[1674006699547,1.79083987,21217.0,21216.0,0.037821]
[1674006699733,1.5999809,21217.0,21216.0,0.037821]
[1674006700240,1.78887104,21217.0,21216.0,0.037821]
[1674006700457,2.07053877,21217.0,21216.0,0.037821]
[1674006701944,2.54185877,21217.0,21216.0,0.037821]
[1674006702464,2.31633554,21217.0,21216.0,0.001]
[1674006702979,2.31633554,21217.0,21216.0,0.037821]
[1674006703229,2.31633554,21217.0,21216.0,0.001]
[1674006709359,2.31633554,21217.0,21216.0,0.037821]
[1674006709875,2.31633554,21217.0,21216.0,0.001]
[1674006710132,0.15,21216.0,21215.0,0.236]
[1674006710418,2.21376901,21216.0,21215.0,0.236]
[1674006710674,1.93191591,21216.0,21215.0,0.236]
[1674006711263,2.01491591,21216.0,21215.0,0.237]
[1674006711529,2.29676218,21216.0,21215.0,0.237]
[1674006711808,2.29673383,21216.0,21215.0,0.237]
[1674006712071,2.18613383,21216.0,21215.0,0.237]
[1674006714426,1.90431591,21216.0,21215.0,0.237]
[1674006714689,2.18624162,21216.0,21215.0,0.237]
[1674006716050,2.15067629,21216.0,21215.0,0.273823]
[1674006716312,1.84900065,21216.0,21215.0,0.273825]
[1674006716573,1.42035888,21216.0,21215.0,0.273825]
[1674006717105,1.42675888,21216.0,21215.0,0.273825]
[1674006717371,0.37129016,21216.0,21215.0,0.248825]
[1674006717922,0.37129016,21216.0,21215.0,0.24889094]
[1674006718173,0.37129016,21216.0,21215.0,0.248825]
[1674006718429,0.25854021,21216.0,21215.0,0.248825]
[1674006718680,0.72988221,21216.0,21215.0,0.248825]
[1674006719408,0.95541688,21216.0,21215.0,0.248825]
[1674006719626,1.42675888,21216.0,21215.0,0.248825]
[1674006720270,1.86669488,21216.0,21215.0,0.248825]
[1674006720527,1.86669488,21216.0,21215.0,0.212]
[1674006720751,1.69755467,21216.0,21215.0,0.248825]
[1674006720979,1.86668686,21216.0,21215.0,0.248825]
[1674006721210,1.88722882,21216.0,21215.0,0.212]
[1674006721430,1.88723121,21216.0,21215.0,0.212]
[1674006721868,1.42675279,21216.0,21215.0,0.212]
[1674006722168,1.42675279,21216.0,21215.0,0.248825]
[1674006722429,1.86665638,21216.0,21215.0,0.248825]
[1674006722679,1.42675279,21216.0,21215.0,0.248825]
[1674006723946,1.86452872,21216.0,21215.0,0.248825]
[1674006724203,1.6953946,21216.0,21215.0,0.248825]
[1674006724423,1.39318791,21216.0,21215.0,0.248825]
[1674006724679,0.95541198,21216.0,21215.0,0.248825]
[1674006725180,0.72987731,21216.0,21215.0,0.248825]
[1674006726246,0.94901198,21216.0,21215.0,0.248825]
[1674006726504,0.72347731,21216.0,21215.0,0.248825]
[1674006727618,0.25213531,21216.0,21215.0,0.248825]
[1674006727921,0.36492813,21216.0,21215.0,0.248825]
[1674006728178,0.25213531,21216.0,21215.0,0.248825]
[1674006728446,0.36493006,21216.0,21215.0,0.248825]
[1674006731069,0.19579475,21216.0,21215.0,0.248825]
[1674006731372,0.19579475,21216.0,21215.0,0.831289]
[1674006731373,0.083,21216.0,21215.0,0.831289]
[1674006731598,0.083,21216.0,21215.0,1.302653]
[1674006733412,0.083,21216.0,21215.0,0.831289]
[1674006733670,0.083,21216.0,21215.0,0.248825]
[1674006733671,0.19579475,21216.0,21215.0,0.248825]
[1674006733924,0.083,21216.0,21215.0,0.248825]
[1674006734185,0.19579475,21216.0,21215.0,0.248825]
[1674006734698,0.083,21216.0,21215.0,0.248825]
[1674006736739,0.083,21216.0,21215.0,0.720189]
[1674006741902,0.083,21216.0,21215.0,0.831089]
[1674006747555,0.083,21216.0,21215.0,1.79752764]
[1674006749112,0.083,21216.0,21215.0,2.09752764]
[1674006750955,0.08291432,21216.0,21215.0,2.20752764]
[1674006752767,0.08291432,21216.0,21215.0,1.90752764]
[1674006753015,0.08291432,21216.0,21215.0,2.20752764]
[1674006754147,0.08291432,21216.0,21215.0,2.20752764]
[1674006755397,0.08291432,21216.0,21215.0,1.523553]
[1674006755909,0.08291432,21216.0,21215.0,1.52474675]
[1674006756143,0.08291432,21216.0,21215.0,1.41364675]
[1674006756908,0.08291432,21216.0,21215.0,0.83138275]
[1674006757158,0.08291432,21216.0,21215.0,0.25001875]
[1674006757397,0.08291432,21216.0,21215.0,0.21319375]
[1674006760691,0.08291432,21216.0,21215.0,0.212]
[1674006763435,0.97829041,21218.0,21215.0,0.3207395]
[1674006764017,0.97829041,21218.0,21216.0,0.00114011]
[1674006764204,0.97876731,21218.0,21215.0,0.3207395]
[1674006764712,0.97876731,21218.0,21215.0,0.3197395]
[1674006764958,0.97876731,21218.0,21215.0,0.3307395]
[1674006765949,0.11279475,21217.0,21215.0,0.3307395]
[1674006766199,0.94397801,21217.0,21215.0,0.222]
[1674006766451,0.28193006,21216.0,21215.0,0.222]
[1674006766698,0.90327206,21216.0,21215.0,0.211]
[1674006767450,0.58413675,21216.0,21215.0,0.211]
[1674006767690,0.58413675,21216.0,21215.0,0.223]
[1674006767952,0.58413675,21216.0,21215.0,0.211]
[1674006768202,0.58413675,21216.0,21215.0,0.223]
[1674006768453,0.11279475,21216.0,21215.0,0.22311965]
[1674006768708,0.58413175,21217.0,21215.0,0.25994465]
[1674006768959,0.58413175,21217.0,21215.0,0.22311965]
[1674006769485,0.0085,21216.0,21215.0,0.21111965]
[1674006769809,0.0085,21216.0,21215.0,0.22311965]
[1674006770044,0.0085,21216.0,21215.0,0.223]
[1674006770835,0.0085,21216.0,21215.0,0.211]
[1674006771077,0.0235,21216.0,21215.0,0.21811965]
[1674006771329,0.0235,21216.0,21215.0,0.218]
[1674006773350,0.0239769,21216.0,21215.0,0.218]
[1674006773622,0.0235,21216.0,21215.0,0.21908914]
[1674006774872,0.0235,21216.0,21215.0,0.218]
[1674006775370,0.0239769,21216.0,21215.0,0.218]
[1674006775617,0.0235,21216.0,21215.0,0.218]
[1674006776703,0.0239769,21216.0,21215.0,0.218]
[1674006776887,0.0235,21216.0,21215.0,0.218]
[1674006780571,0.13629475,21216.0,21215.0,0.218]
[1674006781294,0.0235,21216.0,21215.0,0.218]
[1674006782273,0.0239769,21216.0,21215.0,0.218]
[1674006782809,0.13677165,21216.0,21215.0,0.218]
[1674006783092,0.13677165,21216.0,21215.0,0.689364]
[1674006783291,0.0235,21216.0,21215.0,1.19811684]
[1674006783542,0.0235,21216.0,21215.0,1.31541952]
[1674006786005,0.015,21216.0,21215.0,1.31541952]
[1674006786761,0.015,21216.0,21215.0,1.69610276]
[1674006787533,0.015,21216.0,21215.0,1.99610276]
[1674006790093,0.015,21216.0,21215.0,1.69610276]
[1674006790353,0.015,21216.0,21215.0,1.31541952]
[1674006791097,0.015,21216.0,21215.0,2.25650276]
[1674006791346,0.015,21216.0,21215.0,2.36902771]
[1674006791598,0.015,21216.0,21215.0,2.53780342]
[1674006791841,0.015,21216.0,21215.0,2.38780342]
[1674006792094,0.015,21216.0,21215.0,2.21902771]
[1674006792830,0.00784336,21221.0,21215.0,2.21202771]
[1674006793073,0.0085,21220.0,21216.0,0.92679509]
[1674006793330,0.0085,21220.0,21217.0,1.450742]
[1674006793569,0.0085,21220.0,21218.0,0.09905326]
[1674006795863,0.0225,21220.0,21219.0,0.98636]
[1674006796135,0.0225,21220.0,21219.0,0.98625234]
[1674006796675,0.69042764,21220.0,21219.0,0.007]
[1674006796937,1.95439964,21220.0,21219.0,0.007]
[1674006797194,3.48844234,21220.0,21219.0,0.007]
[1674006797442,3.58719987,21220.0,21219.0,0.00289567]
[1674006797692,3.85463075,21220.0,21215.0,0.211]
[1674006797945,0.3319,21216.0,21215.0,0.211]
[1674006798214,0.6623429,21216.0,21215.0,0.211]
[1674006798748,1.09133792,21216.0,21215.0,0.211]
[1674006798994,1.18033792,21216.0,21215.0,0.211]
[1674006800294,1.09133792,21216.0,21215.0,0.211]
[1674006800779,1.18033792,21216.0,21215.0,0.211]
[1674006801079,0.85839502,21216.0,21215.0,0.211]
[1674006801328,0.74799502,21216.0,21215.0,0.211]
[1674006804375,0.74799502,21216.0,21213.0,6.471396]
[1674006804376,0.1504769,21215.0,21213.0,3.4086777]
[1674006804667,0.1504769,21215.0,21211.0,0.00315514]
[1674006804668,0.15,21213.0,21211.0,0.00315514]
[1674006804902,2.13514263,21212.0,21211.0,0.00315514]
[1674006805155,2.18117926,21212.0,21211.0,0.00315514]
[1674006805417,2.03165616,21212.0,21211.0,0.00315514]
[1674006805670,1.8628582,21212.0,21211.0,0.00315514]
[1674006805929,2.1628582,21212.0,21211.0,0.00315514]
[1674006806195,2.2538582,21212.0,21211.0,0.00315514]
[1674006806444,1.8628582,21212.0,21211.0,0.00315514]
[1674006806704,2.2538582,21212.0,21211.0,0.00315514]
[1674006806940,1.84150659,21212.0,21211.0,0.00315514]
[1674006807705,1.75050659,21212.0,21211.0,0.00315514]
[1674006807956,1.84150659,21212.0,21211.0,0.00315514]
[1674006808505,1.99150659,21212.0,21211.0,0.00315514]
[1674006810030,2.32360659,21212.0,21211.0,0.00315514]
[1674006811198,2.17360659,21212.0,21211.0,0.24315514]
[1674006814615,2.47360659,21212.0,21211.0,0.24315514]
[1674006815597,2.17360659,21212.0,21211.0,0.24315514]
[1674006816907,2.47360659,21212.0,21211.0,0.24315514]
[1674006819009,2.65134291,21212.0,21211.0,0.24315514]
[1674006819247,2.21680659,21212.0,21211.0,0.24315514]
[1674006820033,2.29220659,21212.0,21211.0,0.24315514]
[1674006826291,2.29220659,21212.0,21211.0,0.06102553]
[1674006827317,1.99220659,21212.0,21211.0,0.06102553]
[1674006827868,1.99320659,21212.0,21211.0,0.06102553]
[1674006828125,1.90120659,21212.0,21211.0,0.06102553]
[1674006828382,1.91790659,21212.0,21211.0,0.06102553]
[1674006828634,1.50444059,21212.0,21211.0,0.06102553]
[1674006828898,1.91690659,21212.0,21211.0,0.06102553]
[1674006829149,1.59544059,21212.0,21211.0,0.06102553]
[1674006829663,1.91690659,21212.0,21211.0,0.06102553]
[1674006831179,1.59544059,21212.0,21211.0,0.06102553]
[1674006834037,2.14150659,21212.0,21211.0,0.06102553]
[1674006834699,1.84150659,21212.0,21211.0,0.06102553]
[1674006834901,1.97004059,21212.0,21211.0,0.06102553]
[1674006835144,2.29150659,21212.0,21211.0,0.06102553]
[1674006835358,1.99150659,21212.0,21211.0,0.06102553]
[1674006835604,2.29150659,21212.0,21211.0,0.06102553]
[1674006835851,2.4038582,21212.0,21211.0,0.06102553]
[1674006836100,2.1038582,21212.0,21211.0,0.06102553]
[1674006836855,1.84150659,21212.0,21211.0,0.06102553]
[1674006837358,1.52004059,21212.0,21211.0,0.06102553]
[1674006837599,1.51956369,21212.0,21211.0,0.06102553]
[1674006839142,1.0428389,21212.0,21211.0,0.06102553]
[1674006839675,1.042362,21212.0,21211.0,0.06102553]
[1674006840186,0.0995,21212.0,21211.0,0.06102553]
[1674006840431,0.0995,21212.0,21211.0,0.09776253]
[1674006841190,0.0995,21212.0,21211.0,0.56921553]
[1674006841986,0.0085,21212.0,21211.0,0.56921553]
[1674006842213,0.0855,21212.0,21211.0,1.04166853]
[1674006842498,0.0855,21212.0,21211.0,1.65939191]
[1674006842750,0.0855,21212.0,21211.0,1.26326853]
[1674006843271,0.0855,21212.0,21211.0,0.06202553]
[1674006843272,1.8740078,21212.0,21211.0,0.06202553]
[1674006843517,3.06926088,21212.0,21211.0,0.06202553]
[1674006843780,3.37467933,21212.0,21211.0,0.06202553]
[1674006844040,3.42534469,21212.0,21211.0,0.06202553]
[1674006844557,3.41679469,21212.0,21211.0,0.06202553]
[1674006844818,2.5575031,21212.0,21211.0,0.06202553]
[1674006845103,1.6114291,21212.0,21211.0,0.06202553]
[1674006845445,0.87408104,21212.0,21211.0,0.06102553]
[1674006845681,0.97008104,21212.0,21211.0,0.06102553]
[1674006845940,0.74485478,21212.0,21211.0,0.06102553]
[1674006846234,0.27342378,21212.0,21211.0,0.06102553]
[1674006846510,0.38650879,21212.0,21211.0,0.06102553]
[1674006846796,0.27390068,21212.0,21211.0,0.06102553]
[1674006847057,0.38603162,21212.0,21211.0,0.06102553]
[1674006848091,0.27342378,21212.0,21211.0,0.06102553]
[1674006848351,0.97008104,21212.0,21211.0,0.06102553]
[1674006848602,2.32839463,21212.0,21211.0,0.06102553]
[1674006848856,1.97954187,21212.0,21211.0,0.06102553]
[1674006849107,2.31628984,21212.0,21211.0,0.06102553]
[1674006849435,1.8106585,21212.0,21211.0,0.06102553]
[1674006851164,1.8106585,21212.0,21211.0,0.06094146]
[1674006851668,2.03456853,21212.0,21211.0,0.06094146]
[1674006851930,1.8111354,21212.0,21211.0,0.06094146]
[1674006852183,2.31610303,21212.0,21211.0,0.06094146]
[1674006852445,2.35604469,21212.0,21211.0,0.06094146]
[1674006852699,2.03457869,21212.0,21211.0,0.06094146]
[1674006852961,2.31610303,21212.0,21211.0,0.06094146]
[1674006853280,0.52852471,21210.0,21209.0,0.00953326]
[1674006853478,3.21665519,21210.0,21209.0,0.00953326]
[1674006853734,3.72918442,21210.0,21209.0,0.00099905]
[1674006854023,4.56056648,21210.0,21209.0,0.00099905]
[1674006854741,4.80726648,21210.0,21209.0,0.00099905]
[1674006854998,4.3165113,21210.0,21209.0,0.00099905]
[1674006855273,3.93840913,21210.0,21209.0,0.00099905]
[1674006855536,3.82252069,21210.0,21209.0,0.00099905]
[1674006855808,3.20582924,21210.0,21209.0,0.00099905]
[1674006856288,3.48696839,21210.0,21209.0,0.00099905]
[1674006856807,3.71186391,21210.0,21209.0,0.00099905]
[1674006857139,2.18650955,21210.0,21209.0,0.00099905]
[1674006857357,2.18650955,21210.0,21209.0,0.11910905]
[1674006857358,0.05132302,21210.0,21209.0,0.11910905]
[1674006857601,0.14732302,21210.0,21209.0,0.11910905]
[1674006858166,0.14732302,21210.0,21209.0,0.00099905]
[1674006858417,0.05132302,21210.0,21209.0,0.00099905]
[1674006861062,0.14732302,21210.0,21209.0,0.00099905]
[1674006861789,0.14732302,21210.0,21208.0,0.38320497]
[1674006862023,0.14732302,21210.0,21209.0,0.036746]
[1674006862290,0.14732302,21210.0,21208.0,0.38320497]
[1674006863044,0.05132302,21210.0,21208.0,0.38320497]
[1674006863554,0.14732302,21210.0,21208.0,0.38320497]
[1674006864067,0.14732302,21210.0,21209.0,0.036747]
[1674006864335,0.14732302,21210.0,21208.0,0.62320497]
[1674006864575,0.14732302,21210.0,21209.0,0.036746]
[1674006865092,0.14732302,21210.0,21208.0,0.62320497]
[1674006865348,0.14732302,21210.0,21209.0,0.036746]
[1674006865638,0.14732302,21210.0,21209.0,0.508243]
[1674006865885,0.14732302,21210.0,21209.0,0.583943]
[1674006866376,0.05132302,21210.0,21209.0,0.583943]
[1674006866631,0.14732302,21210.0,21209.0,0.583943]
[1674006866893,0.14732302,21210.0,21209.0,0.508243]
[1674006868422,0.14732302,21210.0,21209.0,0.50726794]
[1674006869463,0.14732302,21210.0,21209.0,0.50813271]
[1674006871393,0.14732302,21210.0,21209.0,0.00086477]
[1674006871638,0.14732302,21210.0,21209.0,0.03663377]
[1674006872919,0.14732302,21210.0,21209.0,0.50813077]